fUST/lending_fUST_20250107
["ID","MTS","AMOUNT","RATE_DAILY","PERIOD"]
[347980868,1736260232684,-192.0,0.00018207,2]
[347980870,1736260232694,-273.1169139,0.00018219,2]
[347980871,1736260232702,-153.7491537,0.00018219,2]
[347980874,1736260232712,-153.0,0.00018219,2]
[347980875,1736260232721,-214.6648391,0.00018219,2]
[347980877,1736260232733,-214.6648391,0.00018219,2]
[347980879,1736260232742,-153.7491537,0.00018219,2]
[347980881,1736260232751,-153.7491537,0.00018219,2]
[347980883,1736260232761,-214.6648391,0.00018219,2]
[347980885,1736260232770,-153.7491537,0.00018219,2]
[347980887,1736260232781,-621.688,0.0001822,2]
[347980890,1736260232790,-4823.96853654,0.00018348,2]
[347980891,1736260232800,-352.9591083,0.00018356,2]
[347980893,1736260232810,-352.9591083,0.00018356,2]
[347980895,1736260232820,-352.9591083,0.00018356,2]
[347980897,1736260232829,-352.9591083,0.00018356,2]
[347980900,1736260232839,-348.3528697,0.00018356,2]
[347980901,1736260232848,-704.8378281,0.00018356,2]
[347980903,1736260232858,-352.9591083,0.00018356,2]
[347980905,1736260232867,-352.9591083,0.00018356,2]
[347980907,1736260232877,-352.2717558,0.00018356,2]
[347980910,1736260232886,-1042.48773404,0.00018359,2]
[347980911,1736260232896,-150.0,0.000184,2]
[347980914,1736260232905,-600.0,0.00018411,2]
[347980915,1736260232915,-420.0,0.0001849,2]
[347980917,1736260232924,-535.0,0.00018539,2]
[347980920,1736260232933,-2081.0,0.00018539,2]
[347980921,1736260232942,-2317.0,0.00018539,2]
[347980924,1736260232952,-394.0,0.00018539,2]
[347980925,1736260232961,-167.0,0.00018552,2]
[347980928,1736260232971,-161.0,0.00018552,2]
[347980929,1736260232980,-161.0,0.00018552,2]
[347980931,1736260232989,-161.0,0.00018552,2]
[347980933,1736260232999,-161.0,0.00018552,2]
[347980935,1736260233008,-161.0,0.00018552,2]
[347980937,1736260233018,-161.0,0.00018552,2]
[347980939,1736260233027,-161.0,0.00018552,2]
[347980941,1736260233037,-161.0,0.00018552,2]
[347980944,1736260233047,-4823.96853654,0.0001859,2]
[347980945,1736260233059,-600.0,0.000186,2]
[347980948,1736260233069,-153.6,0.000186,2]
[347980949,1736260233079,-600.0,0.00018603,2]
[347980951,1736260233089,-150.633,0.00018656,2]
[347980953,1736260233099,-216.878,0.00018656,2]
[347980956,1736260233109,-153.749,0.00018656,2]
[347980958,1736260233119,-1000.0,0.0001872,10]
[347980960,1736260233129,-554.09873192,0.0001874,2]
[347980962,1736260233138,-1000.0,0.0001874,10]
[347980963,1736260233148,-1000.0,0.0001876,10]
[347980965,1736260233157,-168.02,0.00018765,2]
[347980968,1736260233167,-162.0,0.00018765,2]
[347980969,1736260233176,-162.0,0.00018765,2]
[347980971,1736260233186,-162.0,0.00018765,2]
[347980974,1736260233196,-162.0,0.00018765,2]
[347980975,1736260233205,-162.0,0.00018765,2]
[347980977,1736260233215,-162.39,0.00018765,2]
[347980979,1736260233225,-1000.0,0.0001878,10]
[347980982,1736260233235,-34191.62631789,0.00018794,2]
[347980983,1736260233244,-4566.07253196,0.00018794,2]
[347980985,1736260233254,-935.07553636,0.00018794,2]
[347980988,1736260233264,-150.0,0.000188,2]
[347980989,1736260233273,-1000.0,0.000188,10]
[347980992,1736260233283,-689.43656574,0.0001881,2]
[347980993,1736260233293,-1000.0,0.0001882,10]
[347980996,1736260233304,-4823.96853654,0.00018831,2]
[347980998,1736260233315,-1000.0,0.0001884,10]
[347981000,1736260233324,-1000.0,0.0001886,10]
[347981002,1736260233334,-172.0,0.00018871,2]
[347981003,1736260233343,-172.0,0.00018871,2]
[347981005,1736260233353,-172.0,0.00018871,2]
[347981008,1736260233362,-172.0,0.00018871,2]
[347981009,1736260233371,-174.59,0.00018871,2]
[347981012,1736260233381,-1000.0,0.0001888,10]
[347981013,1736260233390,-153.0,0.00018883,2]
[347981015,1736260233400,-153.0,0.00018883,2]
[347981017,1736260233410,-153.0,0.00018883,2]
[347981019,1736260233420,-153.0,0.00018883,2]
[347981022,1736260233430,-153.0,0.00018883,2]
[347981024,1736260233440,-153.0,0.00018883,2]
[347981026,1736260233450,-153.0,0.00018883,2]
[347981028,1736260233460,-153.0,0.00018883,2]
[347981030,1736260233470,-153.0,0.00018883,2]
[347981032,1736260233480,-153.0,0.00018883,2]
[347981034,1736260233490,-153.0,0.00018883,2]
[347981048,1736260233630,-153.0,0.00018883,2]
[347981050,1736260233640,-188.0,0.00018885,2]
[347981052,1736260233649,-188.0,0.00018885,2]
[347981054,1736260233659,-188.0,0.00018885,2]
[347981056,1736260233668,-188.0,0.00018885,2]
[347981058,1736260233679,-188.0,0.00018885,2]
[347981060,1736260233693,-188.0,0.00018885,2]
[347981062,1736260233702,-188.0,0.00018885,2]
[347981064,1736260233712,-188.0,0.00018885,2]
[347981066,1736260233721,-188.0,0.00018885,2]
[347981068,1736260233735,-188.0,0.00018885,2]
[347981070,1736260233744,-188.0,0.00018885,2]
[347981072,1736260233753,-188.0,0.00018885,2]
[347981074,1736260233762,-188.0,0.00018885,2]
[347981076,1736260233772,-188.0,0.00018885,2]
[347981078,1736260233781,-296.828,0.0001889,2]
[347981080,1736260233791,-295.98893615,0.00018892,2]
[347981082,1736260233804,-280.68030823,0.00018892,2]
[347981084,1736260233813,-200.0,0.00018892,2]
[347981086,1736260233823,-153.0,0.00018893,2]
[347981088,1736260233832,-153.0,0.00018893,2]
[347981090,1736260233842,-153.0,0.00018893,2]
[347981092,1736260233853,-153.0,0.00018893,2]
[347981094,1736260233863,-153.0,0.00018893,2]
[347981096,1736260233872,-153.0,0.00018893,2]
[347981098,1736260233882,-153.0,0.00018893,2]
[347981100,1736260233892,-153.0,0.00018893,2]
[347981102,1736260233902,-153.0,0.00018893,2]
[347981104,1736260233911,-153.0,0.00018893,2]
[347981106,1736260233921,-153.0,0.00018893,2]
[347981108,1736260233930,-153.0,0.00018893,2]
[347981109,1736260233940,-188.0,0.00018896,2]
[347981111,1736260233949,-188.0,0.00018896,2]
[347981113,1736260233959,-188.0,0.00018896,2]
[347981115,1736260233969,-188.0,0.00018896,2]
[347981117,1736260233979,-188.0,0.00018896,2]
[347981119,1736260233988,-188.0,0.00018896,2]
[347981121,1736260233999,-188.0,0.00018896,2]
[347981123,1736260234008,-188.0,0.00018896,2]
[347981125,1736260234018,-188.0,0.00018896,2]
[347981127,1736260234027,-188.0,0.00018896,2]
[347981129,1736260234037,-188.0,0.00018896,2]
[347981131,1736260234048,-188.0,0.00018896,2]
[347981133,1736260234061,-188.0,0.00018896,2]
[347981135,1736260234071,-188.0,0.00018896,2]
[347981138,1736260234081,-153.0,0.000189,2]
[347981140,1736260234091,-153.0,0.000189,2]
[347981141,1736260234101,-153.0,0.000189,2]
[347981143,1736260234111,-153.0,0.000189,2]
[347981145,1736260234121,-153.0,0.000189,2]
[347981148,1736260234131,-153.0,0.000189,2]
[347981149,1736260234141,-153.0,0.000189,2]
[347981152,1736260234151,-153.0,0.000189,2]
[347981153,1736260234161,-153.0,0.000189,2]
[347981156,1736260234171,-153.0,0.000189,2]
[347981158,1736260234182,-153.0,0.000189,2]
[347981159,1736260234192,-153.0,0.000189,2]
[347981161,1736260234202,-1000.0,0.000189,10]
[347981163,1736260234212,-4073.25349809,0.000189,2]
[347981165,1736260234222,-271.33359807,0.000189,2]
[347981167,1736260234233,-188.0,0.00018901,2]
[347981169,1736260234243,-188.0,0.00018901,2]
[347981171,1736260234252,-188.0,0.00018901,2]
[347981173,1736260234262,-188.0,0.00018901,2]
[347981175,1736260234272,-188.0,0.00018901,2]
[347981177,1736260234282,-188.0,0.00018901,2]
[347981179,1736260234292,-188.0,0.00018901,2]
[347981181,1736260234304,-188.0,0.00018901,2]
[347981183,1736260234314,-188.0,0.00018901,2]
[347981185,1736260234324,-188.0,0.00018901,2]
[347981187,1736260234334,-188.0,0.00018901,2]
[347981189,1736260234343,-188.0,0.00018901,2]
[347981191,1736260234353,-188.0,0.00018901,2]
[347981193,1736260234363,-188.0,0.00018901,2]
[347981195,1736260234373,-1999.99,0.00018904,7]
[347981197,1736260234383,-1000.0,0.0001892,10]
[347981199,1736260234393,-499.0,0.00018934,2]
[347981201,1736260234402,-1000.0,0.0001894,10]
[347981203,1736260234411,-4073.25349807,0.00018945,2]
[347981205,1736260234420,-151.0,0.00018945,2]
[347981206,1736260234430,-172.213049,0.00018945,2]
[347981208,1736260234440,-172.213049,0.00018945,2]
[347981211,1736260234449,-417.039754,0.00018945,2]
[347981213,1736260234460,-417.039754,0.00018945,2]
[347981215,1736260234470,-151.0,0.0001895,2]
[347981216,1736260234480,-1000.0,0.0001896,10]
[347981218,1736260234489,-151.0,0.00018973,2]
[347981221,1736260234499,-172.213049,0.00018973,2]
[347981223,1736260234509,-172.213049,0.00018973,2]
[347981224,1736260234519,-417.039754,0.00018973,2]
[347981226,1736260234529,-417.039754,0.00018973,2]
[347981228,1736260234538,-1076.885887,0.00018979,2]
[347981230,1736260234548,-1076.885887,0.00018979,2]
[347981232,1736260234563,-1000.0,0.0001898,10]
[347981234,1736260234573,-151.0,0.0001898,2]
[347981236,1736260234585,-1076.885887,0.00018983,2]
[347981238,1736260234596,-1076.885887,0.00018983,2]
[347981240,1736260234607,-244.6154762,0.00018986,2]
[347981242,1736260234617,-4073.25349807,0.00018989,2]
[347981244,1736260234628,-810.999999,0.00018995,7]
[347981246,1736260234638,-500.0,0.00018999,2]
[347981248,1736260234648,-39596.70000056,0.00019,7]
[347981250,1736260234658,-600.0,0.00019,2]
[347981252,1736260234668,-151.0,0.00019,2]
[347981254,1736260234677,-151.0,0.00019,2]
[347981256,1736260234687,-1076.885887,0.00019,2]
[347981258,1736260234697,-1076.885887,0.00019,2]
[347981260,1736260234707,-151.0,0.00019,2]
[347981262,1736260234716,-151.0,0.00019,2]
[347981264,1736260234727,-1000.0,0.00019,10]
[347981266,1736260234739,-151.0,0.00019,2]
[347981268,1736260234749,-151.0,0.00019,2]
[347981270,1736260234758,-151.0,0.00019,2]
[347981272,1736260234768,-151.0,0.00019,2]
[347981274,1736260234778,-172.213049,0.00019,2]
[347981276,1736260234788,-172.213049,0.00019,2]
[347981278,1736260234797,-302.9394212,0.00019,2]
[347981280,1736260234810,-2428.11775274,0.00019,2]
[347981282,1736260234820,-88362.39881284,0.00019,3]
[347981284,1736260234830,-417.039754,0.00019,2]
[347981286,1736260234840,-417.039754,0.00019,2]
[347981288,1736260234849,-302.96970909,0.00019,2]
[347981290,1736260234859,-1000.0,0.0001902,10]
[347981291,1736260234868,-4073.25349807,0.00019034,2]
[347981294,1736260234878,-1000.0,0.0001904,10]
[347981295,1736260234887,-153.0,0.00019041,2]
[347981297,1736260234897,-153.4712602,0.00019041,2]
[347981299,1736260234906,-306.0,0.00019041,2]
[347981301,1736260234915,-214.6648391,0.00019041,2]
[347981303,1736260234925,-241.4609134,0.00019041,2]
[347981305,1736260234935,-153.7491537,0.00019041,2]
[347981307,1736260234944,-153.0,0.00019041,2]
[347981309,1736260234953,-214.6648391,0.00019041,2]
[347981311,1736260234963,-153.7491537,0.00019041,2]
[347981313,1736260234973,-153.4217127,0.00019041,2]
[347981315,1736260234983,-214.6648391,0.00019041,2]
[347981317,1736260234992,-153.0,0.00019041,2]
[347981319,1736260235001,-1000.0,0.0001906,10]
[347981321,1736260235010,-372.70768479,0.00019067,5]
[347981323,1736260235019,-4823.96853654,0.00019072,2]
[347981325,1736260235028,-151.0,0.00019077,2]
[347981327,1736260235038,-1076.885887,0.00019077,2]
[347981329,1736260235047,-1076.885887,0.00019077,2]
[347981331,1736260235058,-151.0,0.00019077,2]
[347981333,1736260235067,-151.0,0.00019077,2]
[347981335,1736260235077,-4073.25349807,0.00019078,2]
[347981337,1736260235086,-552.106225,0.0001908,2]
[347981339,1736260235095,-1000.0,0.0001908,10]
[347981341,1736260235104,-300.0,0.000191,8]
[347981343,1736260235113,-1000.0,0.000191,10]
[347981345,1736260235122,-150.0,0.000191,2]
[347981347,1736260235132,-151.0,0.00019141,2]
[347981349,1736260235141,-151.0,0.00019141,2]
[347981351,1736260235150,-172.213049,0.00019141,2]
[347981353,1736260235159,-172.213049,0.00019141,2]
[347981355,1736260235169,-417.039754,0.00019141,2]
[347981357,1736260235178,-417.039754,0.00019141,2]
[347981359,1736260235187,-1042.48773404,0.00019142,2]
[347981361,1736260235196,-278.0,0.0001917,2]
[347981363,1736260235205,-500.0,0.00019173,2]
[347981365,1736260235215,-500.0,0.00019173,2]
[347981367,1736260235224,-500.0,0.00019173,2]
[347981369,1736260235233,-500.0,0.00019173,2]
[347981371,1736260235242,-311.93715762,0.00019173,2]
[347981373,1736260235251,-500.0,0.00019173,2]
[347981375,1736260235260,-447.52360096,0.00019173,2]
[347981377,1736260235269,-500.0,0.00019173,2]
[347981379,1736260235278,-500.28166994,0.00019173,2]
[347981381,1736260235288,-500.0,0.00019173,2]
[347981383,1736260235297,-500.0,0.00019173,2]
[347981385,1736260235307,-83309.67322602,0.00019177,15]
[347981387,1736260235317,-151.0,0.00019177,2]
[347981389,1736260235325,-151.0,0.00019177,2]
[347981391,1736260235335,-653.396456,0.00019177,2]
[347981393,1736260235345,-653.396456,0.00019177,2]
[347981395,1736260235355,-193.386762,0.00019177,2]
[347981397,1736260235364,-151.0,0.00019177,2]
[347981399,1736260235373,-1076.885887,0.00019177,2]
[347981401,1736260235382,-1076.885887,0.00019177,2]
[347981403,1736260235391,-219.58991,0.00019177,2]
[347981405,1736260235401,-151.0,0.00019177,2]
[347981407,1736260235410,-151.0,0.00019177,2]
[347981409,1736260235419,-151.0,0.00019177,2]
[347981411,1736260235428,-172.213049,0.00019177,2]
[347981413,1736260235437,-172.213049,0.00019177,2]
[347981415,1736260235447,-417.039754,0.00019177,2]
[347981417,1736260235456,-417.039754,0.00019177,2]
[347981419,1736260235466,-500.0,0.00019178,2]
[347981421,1736260235475,-500.0,0.00019178,2]
[347981423,1736260235484,-288.3873651,0.00019178,2]
[347981425,1736260235493,-500.0,0.00019178,2]
[347981427,1736260235502,-500.0,0.00019178,2]
[347981429,1736260235512,-500.0,0.00019178,2]
[347981431,1736260235521,-235.31482377,0.00019178,2]
[347981433,1736260235530,-151.0,0.00019178,2]
[347981435,1736260235539,-151.0,0.00019178,2]
[347981437,1736260235548,-175.0,0.00019178,2]
[347981439,1736260235561,-151.0,0.00019178,2]
[347981441,1736260235570,-151.0,0.00019178,2]
[347981443,1736260235581,-151.0,0.00019178,2]
[347981445,1736260235591,-200.683109,0.00019178,2]
[347981447,1736260235601,-151.0,0.00019178,2]
[347981449,1736260235610,-151.0,0.00019178,2]
[347981451,1736260235620,-151.0,0.00019178,2]
[347981453,1736260235630,-151.0,0.00019178,2]
[347981455,1736260235639,-151.0,0.00019178,2]
[347981457,1736260235648,-151.0,0.00019178,2]
[347981459,1736260235658,-151.0,0.00019178,2]
[347981461,1736260235667,-151.0,0.00019178,2]
[347981463,1736260235676,-151.0,0.00019178,2]
[347981465,1736260235685,-151.0,0.00019178,2]
[347981466,1736260235694,-151.0,0.00019178,2]
[347981468,1736260235704,-151.0,0.00019178,2]
[347981481,1736260235817,-151.0,0.00019178,2]
[347981483,1736260235828,-151.0,0.00019178,2]
[347981485,1736260235837,-151.0,0.00019178,2]
[347981487,1736260235846,-151.0,0.00019178,2]
[347981489,1736260235855,-151.0,0.00019178,2]
[347981491,1736260235867,-151.0,0.00019178,2]
[347981493,1736260235877,-151.0,0.00019178,2]
[347981495,1736260235887,-161.003508,0.00019178,2]
[347981497,1736260235896,-151.0,0.00019178,2]
[347981499,1736260235905,-151.0,0.00019178,2]
[347981501,1736260235915,-151.0,0.00019178,2]
[347981503,1736260235924,-784.31869,0.00019178,2]
[347981505,1736260235933,-784.31869,0.00019178,2]
[347981508,1736260235942,-784.31869,0.00019178,2]
[347981510,1736260235952,-784.31869,0.00019178,2]
[347981511,1736260235961,-784.31869,0.00019178,2]
[347981513,1736260235970,-784.31869,0.00019178,2]
[347981515,1736260235980,-784.31869,0.00019178,2]
[347981517,1736260235989,-784.31869,0.00019178,2]
[347981519,1736260235998,-784.31869,0.00019178,2]
[347981521,1736260236007,-784.31869,0.00019178,2]
[347981523,1736260236016,-784.31869,0.00019178,2]
[347981525,1736260236025,-784.31869,0.00019178,2]
[347981527,1736260236034,-151.0,0.00019178,2]
[347981529,1736260236043,-151.0,0.00019178,2]
[347981531,1736260236053,-151.0,0.00019178,2]
[347981533,1736260236062,-151.0,0.00019178,2]
[347981535,1736260236071,-269.285814,0.00019178,2]
[347981537,1736260236080,-151.0,0.00019178,2]
[347981539,1736260236089,-500.0,0.00019178,2]
[347981541,1736260236099,-318.92882076,0.00019178,2]
[347981542,1736260236108,-500.0,0.00019178,2]
[347981543,1736260236117,-278.758981,0.00019178,2]
[347981544,1736260236126,-278.758981,0.00019178,2]
[347981545,1736260236135,-278.758981,0.00019178,2]
[347981546,1736260236144,-278.758981,0.00019178,2]
[347981547,1736260236154,-278.758981,0.00019178,2]
[347981548,1736260236163,-278.758981,0.00019178,2]
[347981549,1736260236172,-278.758981,0.00019178,2]
[347981550,1736260236181,-278.758981,0.00019178,2]
[347981551,1736260236191,-278.758981,0.00019178,2]
[347981552,1736260236200,-278.758981,0.00019178,2]
[347981553,1736260236209,-278.758981,0.00019178,2]
[347981554,1736260236218,-278.758981,0.00019178,2]
[347981555,1736260236228,-263.407399,0.00019178,2]
[347981556,1736260236237,-263.407399,0.00019178,2]
[347981557,1736260236246,-263.407399,0.00019178,2]
[347981558,1736260236255,-263.407399,0.00019178,2]
[347981559,1736260236265,-263.407399,0.00019178,2]
[347981560,1736260236275,-263.407399,0.00019178,2]
[347981561,1736260236284,-263.407399,0.00019178,2]
[347981562,1736260236294,-263.407399,0.00019178,2]
[347981563,1736260236306,-263.407399,0.00019178,2]
[347981564,1736260236315,-263.407399,0.00019178,2]
[347981566,1736260236325,-263.407399,0.00019178,2]
[347981568,1736260236334,-263.407399,0.00019178,2]
[347981570,1736260236343,-263.407399,0.00019178,2]
[347981572,1736260236353,-263.407399,0.00019178,2]
[347981574,1736260236362,-404.33668845,0.00019178,2]
[347981576,1736260236372,-500.0,0.00019178,2]
[347981578,1736260236381,-151.0,0.00019178,2]
[347981580,1736260236391,-151.0,0.00019178,2]
[347981582,1736260236400,-151.0,0.00019178,2]
[347981584,1736260236410,-151.0,0.00019178,2]
[347981586,1736260236419,-296.092944,0.00019178,2]
[347981588,1736260236427,-500.0,0.00019178,2]
[347981590,1736260236437,-653.396456,0.00019178,2]
[347981592,1736260236446,-653.396456,0.00019178,2]
[347981594,1736260236457,-653.396456,0.00019178,2]
[347981596,1736260236466,-653.396456,0.00019178,2]
[347981598,1736260236475,-653.396456,0.00019178,2]
[347981600,1736260236485,-653.396456,0.00019178,2]
[347981601,1736260236494,-653.396456,0.00019178,2]
[347981603,1736260236503,-653.396456,0.00019178,2]
[347981605,1736260236512,-653.396456,0.00019178,2]
[347981607,1736260236522,-653.396456,0.00019178,2]
[347981609,1736260236531,-653.396456,0.00019178,2]
[347981611,1736260236541,-653.396456,0.00019178,2]
[347981613,1736260236550,-653.396456,0.00019178,2]
[347981615,1736260236561,-653.396456,0.00019178,2]
[347981617,1736260236571,-653.396456,0.00019178,2]
[347981619,1736260236581,-653.396456,0.00019178,2]
[347981621,1736260236591,-500.0,0.00019178,2]
[347981623,1736260236602,-500.88154749,0.00019178,2]
[347981625,1736260236611,-607.87517465,0.00019178,2]
[347981627,1736260236621,-500.0,0.00019178,2]
[347981629,1736260236631,-500.62047802,0.00019178,2]
[347981631,1736260236641,-500.0,0.00019178,2]
[347981633,1736260236650,-500.0,0.00019178,2]
[347981635,1736260236660,-500.0,0.00019178,2]
[347981637,1736260236669,-500.0,0.00019178,2]
[347981639,1736260236678,-500.0,0.00019178,2]
[347981641,1736260236687,-500.0,0.00019178,2]
[347981643,1736260236696,-500.0,0.00019178,2]
[347981645,1736260236706,-500.0,0.00019178,2]
[347981647,1736260236714,-500.0,0.00019178,2]
[347981649,1736260236724,-500.0,0.00019178,2]
[347981651,1736260236738,-500.0,0.00019178,2]
[347981653,1736260236747,-500.0,0.00019178,2]
[347981655,1736260236756,-500.0,0.00019178,2]
[347981657,1736260236765,-949.89,0.00019178,2]
[347981659,1736260236774,-500.0,0.00019178,2]
[347981661,1736260236785,-500.0,0.00019178,2]
[347981663,1736260236794,-500.0,0.00019178,2]
[347981665,1736260236805,-500.0,0.00019178,2]
[347981667,1736260236816,-500.0,0.00019178,2]
[347981669,1736260236825,-500.0,0.00019178,2]
[347981671,1736260236835,-500.0,0.00019178,2]
[347981673,1736260236844,-500.0,0.00019178,2]
[347981675,1736260236853,-500.0,0.00019178,2]
[347981677,1736260236863,-500.0,0.00019178,2]
[347981679,1736260236872,-246.45058543,0.00019178,2]
[347981681,1736260236881,-500.0,0.00019178,2]
[347981683,1736260236890,-500.0,0.00019178,2]
[347981685,1736260236899,-505.89393201,0.00019178,2]
[347981687,1736260236908,-500.0,0.00019178,2]
[347981689,1736260236917,-500.0,0.00019178,2]
[347981691,1736260236926,-500.0,0.00019178,2]
[347981693,1736260236935,-500.0,0.00019178,2]
[347981695,1736260236944,-500.0,0.00019178,2]
[347981697,1736260236953,-420.52156452,0.00019178,2]
[347981699,1736260236962,-500.0,0.00019178,2]
[347981701,1736260236972,-500.0,0.00019178,2]
[347981703,1736260236981,-500.0,0.00019178,2]
[347981705,1736260236990,-500.0,0.00019178,2]
[347981707,1736260236999,-519.28659836,0.00019178,2]
[347981709,1736260237008,-564.66738179,0.00019178,2]
[347981711,1736260237017,-500.9597056,0.00019178,2]
[347981713,1736260237026,-500.0,0.00019178,2]
[347981715,1736260237035,-500.0,0.00019178,2]
[347981717,1736260237044,-500.0,0.00019178,2]
[347981719,1736260237056,-500.0,0.00019178,2]
[347981721,1736260237065,-165.52252035,0.00019178,2]
[347981723,1736260237075,-500.0,0.00019178,2]
[347981725,1736260237085,-500.0,0.00019178,2]
[347981727,1736260237094,-500.0,0.00019178,2]
[347981729,1736260237104,-511.57376437,0.00019178,2]
[347981731,1736260237112,-500.0,0.00019178,2]
[347981733,1736260237121,-500.0,0.00019178,2]
[347981735,1736260237131,-500.0,0.00019178,2]
[347981737,1736260237140,-500.0,0.00019178,2]
[347981739,1736260237149,-649.66,0.00019178,2]
[347981741,1736260237158,-500.0,0.00019178,2]
[347981742,1736260237167,-500.71929054,0.00019178,2]
[347981744,1736260237177,-500.0,0.00019178,2]
[347981746,1736260237186,-500.0,0.00019178,2]
[347981748,1736260237195,-500.0,0.00019178,2]
[347981750,1736260237205,-500.0,0.00019178,2]
[347981752,1736260237214,-581.81,0.00019178,2]
[347981754,1736260237223,-500.0,0.00019178,2]
[347981756,1736260237233,-504.04161417,0.00019178,2]
[347981758,1736260237243,-500.99369359,0.00019178,2]
[347981760,1736260237252,-500.0,0.00019178,2]
[347981762,1736260237262,-500.0,0.00019178,2]
[347981764,1736260237271,-500.0,0.00019178,2]
[347981766,1736260237280,-500.0,0.00019178,2]
[347981769,1736260237290,-500.0,0.00019178,2]
[347981770,1736260237299,-500.0,0.00019178,2]
[347981772,1736260237312,-500.78567531,0.00019178,2]
[347981774,1736260237323,-500.0,0.00019178,2]
[347981776,1736260237332,-498.95097685,0.00019178,2]
[347981778,1736260237341,-551.76,0.00019178,2]
[347981780,1736260237351,-151.0,0.00019178,2]
[347981782,1736260237360,-500.0,0.00019178,2]
[347981784,1736260237370,-500.0,0.00019178,2]
[347981786,1736260237379,-500.0,0.00019178,2]
[347981788,1736260237388,-500.0,0.00019178,2]
[347981790,1736260237398,-500.0,0.00019178,2]
[347981792,1736260237407,-509.75343244,0.00019178,2]
[347981794,1736260237417,-199.23849831,0.00019178,2]
[347981796,1736260237426,-500.0,0.00019178,2]
[347981798,1736260237435,-509.49713186,0.00019178,2]
[347981800,1736260237445,-500.0,0.00019178,2]
[347981802,1736260237454,-500.0,0.00019178,2]
[347981804,1736260237463,-500.0,0.00019178,2]
[347981806,1736260237473,-500.0,0.00019178,2]
[347981808,1736260237482,-500.0,0.00019178,2]
[347981810,1736260237492,-500.0,0.00019178,2]
[347981812,1736260237501,-1076.885887,0.00019178,2]
[347981814,1736260237510,-1076.885887,0.00019178,2]
[347981816,1736260237518,-910.14,0.00019178,2]
[347981818,1736260237528,-1076.885887,0.00019178,2]
[347981820,1736260237537,-1076.885887,0.00019178,2]
[347981822,1736260237547,-500.0,0.00019178,2]
[347981824,1736260237561,-1076.885887,0.00019178,2]
[347981826,1736260237571,-500.0,0.00019178,2]
[347981828,1736260237583,-500.0,0.00019178,2]
[347981830,1736260237593,-500.0,0.00019178,2]
[347981832,1736260237603,-624.59655227,0.00019178,2]
[347981834,1736260237614,-200.0,0.00019178,2]
[347981836,1736260237624,-1076.885887,0.00019178,2]
[347981838,1736260237633,-188.0,0.00019178,2]
[347981840,1736260237643,-500.0,0.00019178,2]
[347981842,1736260237652,-1076.885887,0.00019178,2]
[347981844,1736260237661,-1076.885887,0.00019178,2]
[347981855,1736260237767,-500.0,0.00019178,2]
[347981857,1736260237776,-1076.885887,0.00019178,2]
[347981859,1736260237785,-501.0356338,0.00019178,2]
[347981861,1736260237795,-1076.88588526,0.00019178,2]
[347981863,1736260237807,-500.0,0.00019178,2]
[347981865,1736260237817,-500.0,0.00019178,2]
[347981867,1736260237827,-500.0,0.00019178,2]
[347981869,1736260237837,-500.0,0.00019178,2]